Cogmind - Beta 14 @@@ ROGUE MODE // 2024.08.08 @ 15:19:58 Player: PhazeDK Result: Destroyed by G-34 Mercenary with Small Laser Performance ------------- Evolutions (0) 0 Regions Visited (2) 400 Robots Destroyed (20) 100 Value Destroyed (451) 451 Prototype IDs (0) 0 Alien Tech Used (0) 0 Bonus (0) 0 TOTAL SCORE: 951 Bonus ------- None Cogmind --------- Core Integrity 0/250 Matter 300/300 Energy 71/100 System Corruption 3% Temperature Cool (57) Movement Core (1400) Ox27 Location -10/Mines Parts ------- > --- POWER (1) -------- (None) > --- PROPULSION (2) --- (None) > --- UTILITY (2) ------ Huge Storage Unit Signal Interpreter > --- WEAPON (2) ------- Medium Laser > --- INVENTORY (25) --- Ion Engine Ion Engine Light Treads Light Treads Wheel Improved Heat Sink Medium Matter Pod (100) Visual Processing Unit Propulsion Shielding Propulsion Shielding Weapon Shielding Weapon Shielding Light Armor Plating Light Assault Rifle Rocket Launcher Peak State ------------ > --- POWER ------------ Light Nuclear Core > --- PROPULSION ------- Light Treads Light Treads > --- UTILITY ---------- Huge Storage Unit Signal Interpreter > --- WEAPON ----------- Medium Laser Assault Rifle > --- INVENTORY -------- Ion Engine Ion Engine Light Treads Light Treads Wheel Improved Heat Sink Medium Matter Pod Visual Processing Unit Weapon Shielding Weapon Shielding Light Armor Plating Light Assault Rifle [Rating: 10] Favorites ----------- Power Light Nuclear Core Engine Ion Engine Power Core Light Nuclear Core Propulsion Light Treads Treads Light Treads Utility Signal Interpreter Storage Huge Storage Unit Processor Signal Interpreter Weapon Assault Rifle Energy Gun Medium Laser Ballistic Gun Assault Rifle Special Weapon Mining Laser Build | -11 -10 -10 ------- Run | Yrd Mat Min Slots Evolved . | . . . Power . | . . . Propulsion . | . . . Utility . | . . . Weapon . | . . . Parts Attached 14 | 6 7 1 Power 3 | 1 2 . Engine 1 | 1 . . Core 2 | . 2 . Reactor . | . . . Propulsion 2 | 2 . . Treads 2 | 2 . . Leg . | . . . Wheel . | . . . Hover . | . . . Flight . | . . . Utility 3 | 1 2 . Device . | . . . Storage 2 | 1 1 . Processor 1 | . 1 . Hackware . | . . . Protection . | . . . Artifact . | . . . Weapon 6 | 2 3 1 Energy Gun 1 | . 1 . Energy Cannon . | . . . Ballistic Gun 3 | 2 1 . Ballistic Cannon . | . . . Launcher . | . . . Special Weapon 2 | . 1 1 Impact Weapon . | . . . Slashing Weapon . | . . . Piercing Weapon . | . . . Special Melee Weapon . | . . . Unidentified Prototypes . | . . . Parts Lost 5 | . 1 4 Power 1 | . . 1 Propulsion 2 | . . 2 Utility . | . . . Weapon 2 | . 1 1 Highest Loss Streak 4 | . 1 4 To Critical Strikes . | . . . Average Slot Usage (%) 95 | . 94 97 Engine 5 | . 7 . Core 8 | . 6 13 Treads 27 | . 28 26 Storage 14 | . 14 14 Processor 13 | . 13 14 Energy Gun 5 | . 2 14 Ballistic Gun 16 | . 19 7 Special Weapon 2 | . 1 6 Peak Build Rating 10 | 6 10 10 Average Rating 8 | 4 8 9 On Entrance 5 | . 6 10 Naked Turns . | . . . Heaviest Build 89 | 13 89 89 Greatest Support 40 | 40 40 40 Greatest Overweight (x) 29 | . 2 29 Average Overweight (x) 1 | . 1 2 Largest Inventory Capacity 25 | 8 25 25 Average Capacity 20 | 6 20 25 Most Carried 15 | 2 12 15 Average Carried 8 | 1 7 12 Final Capacity 25 | 8 25 25 Final Carried 15 | 2 12 15 Class Distribution -------------------- 100% | Mutant Dominant Class ---------------- Mutant | -10/Materials Mutant | -10/Mines Resources | -11 -10 -10 ----------- Run | Yrd Mat Min Matter Collected 826 | 202 575 49 Remotely . | . . . Salvage Created 671 | . 671 . Parts 48 | . 48 . Haulers Intercepted 1 | . 1 . Recyclers Shooed 3 | . 3 . Parts Field Recycled . | . . . Retrieved Matter . | . . . Parts Self-Destructed . | . . . Prevented . | . . . Kills | -11 -10 -10 ------- Run | Yrd Mat Min Combat Hostiles Destroyed 14 | . 14 . Guns 14 | . 14 . Classes Destroyed 6 | . 6 . Hauler 1 | . 1 . Recycler 1 | . 1 . Mechanic 1 | . 1 . Watcher 3 | . 3 . Swarmer 5 | . 5 . Grunt 9 | . 9 . Best Kill Streak 3 | . 3 . Combat Bots Only 3 | . 3 . Max Kills in Single Turn 1 | . 1 . Gunslinging . | . . . Exploded . | . . . Melee . | . . . Uniques/NPCs Destroyed . | . . . Combat | -11 -10 -10 -------- Run | Yrd Mat Min Hostile Shots Fired 104 | . 62 42 Missed 28 | . 18 10 Damage Taken 1007 | . 606 401 Core 255 | . 68 187 Absorbed by Shields . | . . . Core Remaining (%) 100 | 100 . . Volleys Fired 101 | . 91 10 Largest 2 | . 2 1 Hottest 100 | . 100 100 Shots Fired 142 | . 132 10 Gun 139 | . 130 9 Cannon . | . . . Launcher . | . . . Special 3 | . 2 1 Kinetic 123 | . 123 . Thermal 19 | . 9 10 Explosive . | . . . Electromagnetic . | . . . Robot Hit Streak 12 | . 12 3 Robot Miss Streak 4 | . 4 1 Penetration Max . | . . . Secondary Targets 2 | . 2 . Max Gunslinging Chain 1 | . 1 . Shots Hit Robots 76 | . 72 4 Core Hits 35 | . 35 . Critical Kills . | . . . Critical Parts Destroyed . | . . . Critical Strikes 1 | . . 1 Burn 1 | . . 1 Melee Attacks . | . . . Impact . | . . . Slashing . | . . . Piercing . | . . . Sneak Attacks . | . . . Combat Hostiles . | . . . Follow-up Attacks . | . . . Damage Inflicted 901 | . 851 50 Guns 897 | . 847 50 Cannons . | . . . Explosions . | . . . Melee . | . . . Ramming 4 | . 4 . Kinetic 810 | . 810 . Thermal 87 | . 37 50 Explosive . | . . . Electromagnetic . | . . . Impact . | . . . Slashing . | . . . Piercing . | . . . Highest Corruption 3 | . 3 3 Average Corruption 2 | . 2 3 Corruption Purged . | . . . Corruption Blocked . | . . . Effects 49 | . 33 16 Message Errors 12 | . 9 3 Matter Fused 13 | . 9 4 Heat Flow Errors 5 | . 3 2 Energy Discharges 7 | . 4 3 Parts Rejected 1 | . 1 . Parts Fused 1 | . 1 . Data Loss (minor) 2 | . 2 . Data Loss (major) 4 | . 2 2 Alerts 3 | . 1 2 Weapon Failures 1 | . 1 . Overload Shots . | . . . Overflow Damage . | . . . Projectiles . | . . . Explosions . | . . . Melee . | . . . Knockbacks . | . . . Impact . | . . . Kinetic . | . . . Secondary . | . . . Self-Inflicted Damage . | . . . Shots . | . . . Rammed 2 | . 2 . Targets Rammed 2 | . 2 . Kicked . | . . . Crushed . | . . . Highest Temperature 263 | . 263 190 Average Temperature 63 | . 70 50 Received Heat Transfer 510 | . 273 237 Siege Activations . | . . . Robots Corrupted . | . . . Combat Hostiles . | . . . Parts Fried . | . . . Impact Corruptions . | . . . Robots Melted . | . . . Combat Hostiles . | . . . Parts Melted . | . . . Heat Transferred 333 | . 111 222 Parts Sabotaged . | . . . Parts Stolen . | . . . Parts Stripped . | . . . Power Chain Reactions . | . . . Alert | -11 -10 -10 ------- Run | Yrd Mat Min Peak Influence 111 | . 111 25 Initial 25 | . . 25 Average 26 | . 31 11 Maximum Alert Level . | . . . Low Security (%) 100 | 100 100 100 Level 1 . | . . . Level 2 . | . . . Level 3 . | . . . Level 4 . | . . . Level 5 . | . . . High Security . | . . . Max Security . | . . . Squads Dispatched 2 | . 2 . Investigation 2 | . 2 . Extermination . | . . . Reinforcement . | . . . Assault . | . . . Garrison . | . . . Intercept . | . . . Searches Triggered . | . . . Construction Impeded . | . . . Haulers Reinforced . | . . . Active Scanning Responses . | . . . Cargo Convoy Interrupts . | . . . Stealth | -11 -10 -10 --------- Run | Yrd Mat Min Distress Signals . | . . . Communications Jammed . | . . . Distress Signals . | . . . Times Spotted 31 | . 29 2 Peak Tracking Total 3 | . 3 2 Tactical Retreats 1 | . 1 . Traps | -11 -10 -10 ------- Run | Yrd Mat Min Traps Triggered 1 | . 1 . Indirectly . | . . . Trap Hack Attempts . | . . . Triggered . | . . . Disarmed . | . . . Reprogrammed . | . . . Reused . | . . . Traps Extracted . | . . . Installed . | . . . Triggered . | . . . Machines | -11 -10 -10 ---------- Run | Yrd Mat Min Machines Disabled . | . . . Max in Single Turn . | . . . Machines Repaired . | . . . Machines Dismantled . | . . . Machines Sabotaged . | . . . Overloaded Fab Kills . | . . . Hacking | -11 -10 -10 --------- Run | Yrd Mat Min Machines Accessed 7 | . 7 . Terminals 5 | . 5 . Fabricators . | . . . Repair Stations . | . . . Recycling Units 2 | . 2 . Scanalyzers . | . . . Garrison Access . | . . . Total Hacks 29 | . 29 . Successful 16 | . 16 . Failed 13 | . 13 . Catastrophic . | . . . Database Lockouts . | . . . Manual 18 | . 18 . Terminals 20 | . 20 . Fabricators . | . . . Repair Stations . | . . . Recycling Units 9 | . 9 . Scanalyzers . | . . . Garrison Access . | . . . Terminal Hacks 7 | . 7 . Terminal Index 1 | . 1 . Locate Traps 1 | . 1 . Maintenance Status 2 | . 2 . Reinforcement Status 1 | . 1 . Registered Components 1 | . 1 . Zone Layout 1 | . 1 . Fabricator Hacks . | . . . Repair Station Hacks . | . . . Recycling Unit Hacks 1 | . 1 . Report Inventory 1 | . 1 . Scanalyzer . | . . . Garrison Access Hacks . | . . . Unauthorized Hacks 8 | . 8 . Terminals 4 | . 4 . Botnet 4 | . 4 . Fabricators . | . . . Repair Stations . | . . . Recycling Units 4 | . 4 . Reject 2 | . 2 . Mask 2 | . 2 . Scanalyzers . | . . . Garrison Access . | . . . Data Cores Recovered . | . . . Used . | . . . Hacking Detections 5 | . 5 . Full Trace Events 3 | . 3 . Feedback Events 1 | . 1 . Corruption 1 | . 1 . Feedback Blocked . | . . . Robot Schematics Acquired . | . . . Robots Built . | . . . Authchips . | . . . Time . | . . . Total Robot Build Rating . | . . . Part Schematics Acquired . | . . . Parts Built . | . . . Authchips . | . . . Time . | . . . Total Part Build Rating . | . . . Parts Repaired . | . . . Time . | . . . Parts Recycled . | . . . Recycled Matter . | . . . Retrieved Matter . | . . . Retrieved Components . | . . . Parts Scanalyzed . | . . . Part Schematics Acquired . | . . . Parts Damaged . | . . . Bothacking | -11 -10 -10 ------------ Run | Yrd Mat Min Used RIF Installer . | . . . Robots Hacked . | . . . Non-combat . | . . . Combat . | . . . Robot Hacks Applied . | . . . Relay Couplers Released . | . . . Fabnet Peak Effective % . | . . . Robots Rewired . | . . . Allies Hacked . | . . . Hacks Repelled . | . . . Allies | -11 -10 -10 -------- Run | Yrd Mat Min Total Allies . | . . . Largest Group . | . . . Highest-Rated Group . | . . . Highest-Rated Ally . | . . . Total Orders . | . . . Ally Attacks . | . . . Total Damage . | . . . Kills . | . . . Allies Corrupted . | . . . Allies Melted . | . . . Intel | -11 -10 -10 ------- Run | Yrd Mat Min Robot Analysis Total . | . . . Derelict Logs Recovered . | . . . Drone Launches . | . . . Drone Recoveries . | . . . Exploration | -11 -10 -10 ------------- Run | Yrd Mat Min Turns Passed 3949 | 75 2991 883 Spaces Moved 1233 | 43 930 260 Core 5 | 3 . 2 Treads 1228 | 40 930 258 Legs . | . . . Wheels . | . . . Hover . | . . . Flight . | . . . Fastest Speed 50 | 50 160 320 Average Speed 275 | 152 266 329 Slowest Speed 1500 | 160 320 1500 Overloaded Moves . | . . . Propulsion Burnouts . | . . . Robots Hopped . | . . . Cave-ins Triggered . | . . . Exploration Rate (%) 54 | 3 98 61 Regions Visited 2 Branch Regions 1 Pre-discovered Areas . | . . . Known Exits Taken 1 | . 1 . Unknown Exits Taken 1 | 1 . . Scrap Searched 2 | . . 2 Spaces Dug 3 | . 2 1 Terrain Destroyed 3 | . 2 1 Melee . | . . . Projectile 3 | . 2 1 AOE . | . . . Terrain Rammed . | . . . Walls Destroyed . | . . . Machines Disabled . | . . . Actions | -11 -10 -10 --------- Run | Yrd Mat Min Total 1633 | 50 1309 274 Wait 270 | . 270 . Move 1231 | 42 929 260 Hop . | . . . Pick Up 14 | 2 9 3 Fast Attach 9 | 6 3 . Attach . | . . . Detach . | . . . Swap 5 | . 4 1 Drop 1 | . 1 . Fire 101 | . 91 10 Melee . | . . . Ram . | . . . Kick . | . . . Crush 2 | . 2 . Escape Stasis . | . . . Rewire . | . . . Trap . | . . . Miscellaneous . | . . . Route ------- -11/Scrapyard -10/Materials (discovered 4 exits: *Mat x3 / *Min) -10/Mines (discovered 2 exits: *Mat / *Exi) History --------- Turn | Location | Event 15 | -11/Scrapyard | Discovered new exit (range 15) 76 | -11/Scrapyard | Entered Materials 312 | -10/Materials | Build established: Mutant 735 | -10/Materials | Discovered new exit (range 7) 747 | -10/Materials | Identified exit to Mines 874 | -10/Materials | Discovered new exit (range 10) 1350 | -10/Materials | Identified exit to Materials 1836 | -10/Materials | Discovered exit to Materials (range 4) 2263 | -10/Materials | Discovered exit to Materials (range 14) 3067 | -10/Materials | Entered Mines 3372 | -10/Mines | Received a Rocket Launcher from a helpful Derelict 3539 | -10/Mines | Discovered exit to Materials (range 8) 3571 | -10/Mines | Deemed a non-threat by the Exiles lab entrance 3571 | -10/Mines | Discovered new exit (range 5) 3580 | -10/Mines | Identified exit to Exiles 3928 | -10/Mines | Core integrity fell below 50% 3945 | -10/Mines | Core integrity fell below 20% 3950 | -10/Mines | Destroyed by G-34 Mercenary with Small Laser Last Messages --------------- 03580_ EXIT=IDENTIFIED: EXILES 03636_ System corrupted: Substantial component data lost. 03664_ System corrupted: IFF burst signal emitted. 03776_ System corrupted: Matter fused (-6). 03804_ Z|R#K&#MM,SC=OIEJMBZIKL7DRDB4HX|SWOW 03823_ UQNZJPNNQ7FW%8OL/RD1BL 03849_ Searching scrap... 03849_ Found Propulsion Shielding. 03849_ Found 51 Matter. 03850_ Acquired 16 matter. 03856_ Acquired Propulsion Shielding. 03907_ Lgt. Treads destroyed. 03913_ Lgt. Nuclear Core destroyed. 03914_ System corrupted: Substantial component data lost. 03921_ Mining Laser destroyed. 03941_ System corrupted: Energy discharge (-34). 03944_ G-47 Trooper suffers critical hit (Burn). Map ----- +----------------------------------------------------+ | ?????????????????????????????????????????????????# | | ?????????????????????????????????????????????????? | | ?????????????????????????????????????????????????? | | ?????????????????????????????????????????????????? | | ?????????????????????????????????????????????????# | | ?????????????????????????????????????????????????# | | ?????????????????????????????????????????????????# | | ??????????????????????????????????????#####??????# | | ?????????????????????????????????????? #??????# | | ???????????????????????? ??????????? #??????# | | ??????????????????????# ???????????# #??????? | | ??????????????????????? #??????????# #?###### | | ???????????????????????? ##????????# #?# | | ???????????????????????? ????????# ### #### | | ???????????????????????? ????##### #??? | | ???????????????????????? ????# #####??? | | ??????????????????????### ????# #??????? | | ?????????????????????? #?# ##??# #####??????? | | ????????????????????? #??# ##?# #??????????? | | ????????????????????? #????# ### #??????????? | | ????????????????????# ##????# ## #??????????? | | ???????????????????? #????# #??????????? | | ???????????????????# ####### ######?????? | | ??????????????????? # g ## ###???? | | ??????????????????? ## g ##??? | | ?????????????####?# #?#@#### #??? | | ?????????##### ## #??# #??# #??? | | #???????## #??#t#??## #??? | | ##?????## #???# #???## #### | | #?????# #???# #????## ## | | #?????# ### ##???# ##????# | | ##?????# ##?## #???## ##???# | | #####??# ##??# #???# #???## | | ## ##?## #??# #???# #????# # | | #### ##?# #???## #????# ## ### | | ### #????# #????# ## ##?## | | ## ###### #????# ### ###???# | | #### # ##????# #?#####?????## | | ##??# #?????# #????????????# | | ##??## ######## #?????# #????????????? | | ##??#### #?????# #?????# #????????????? | | ####### ##????## #?????# #????????????? | | ###?????# ##????# #????????????? | | ######|=##?????## #????# #????????????? | | #????#% ##??#### ###### #????????????? | | < ## #????# ##?## #????????????? | | ### ###??# #### #????????????? | | #?# ##?# ############????????????? | | #?### #?# ##???????????????????????? | | #??## ##?##############????????????????????????? | +----------------------------------------------------+ Best States ------------- Heat Dissipation 25 Energy Generation 14 Energy Capacity 250 Matter Stores 300 Matter Capacity 300 Sight Range 16 Terrain Scan Density 10 Evasion (%) 40 Recoil Reduction 2 Item Schematics ----------------- None Robot Schematics ------------------ None Fabricated ------------ Nothing Alien Tech Used ----------------- None Achievements -------------- None Challenges ------------ None Game ------ Seed DispersionEnhancedInsulator Manual? 0 Play Time 00:23:15 Cumulative 35.7 hours Start 2024.08.08 @ 14:22:24 End 2024.08.08 @ 15:19:58 Sessions 1 Manual Loads 0 Difficulty Rogue Special Mode None Game No. 33 Rogue 33 Adventurer 0 Explorer 0 Win Type - Total 0 Types 0/0/0/0/0/0/0/0/0 Lore% 14 Gallery% 35 Achievement% 32 Wizard Run 0 Options --------- Layout 1 ASCII 0 Keyboard 0 Movement Mouse Keybinds 0 Fullscreen 2 Font 24/Smallcaps Map View 50x35 Zoom Use 0% Tactical HUD 1 Map Filters NONE Filters NONE Steam 1 RUN: a06a744f-184e-46d0-9dd8-9aae4d1ee5f4